bitfinex-derivatives/quotes_BNBF0:USTF0_20230831
["timestamp","ask_amount","ask_price","bid_price","bid_amount"]
[1693501483004,0.07199969,217.5,217.06,0.20012033]
[1693501483906,0.07199969,217.49,217.06,0.20012033]
[1693501484211,0.07199969,217.49,217.07,0.20012033]
[1693501484407,0.07199969,217.49,217.05,0.20012033]
[1693501484706,0.07199969,217.47,217.06,0.20012033]
[1693501485109,0.07199969,217.46,217.06,0.20012033]
[1693501485413,0.07199969,217.46,217.07,0.20012033]
[1693501485611,0.07199969,217.47,217.08,0.20012033]
[1693501485911,0.07199969,217.46,217.09,0.20012033]
[1693501486112,0.07199969,217.46,217.05,0.20012033]
[1693501486312,0.07199969,217.46,217.06,0.20012033]
[1693501486513,0.07199969,217.46,217.05,0.20012033]
[1693501487612,0.07199969,217.42,217.05,0.20012033]
[1693501487910,0.07199969,217.41,217.06,0.20012033]
[1693501488113,0.07199969,217.41,217.07,0.20012033]
[1693501488309,0.07199969,217.41,217.08,0.20012033]
[1693501488508,0.07199969,217.41,217.09,0.20012033]
[1693501488708,0.07199969,217.41,217.0,0.20012033]
[1693501488913,0.07263865,217.41,217.01,0.19715879]
[1693501489109,0.07263865,217.41,216.92,0.15023937]
[1693501489110,0.07263865,217.41,216.99,0.07511968]
[1693501489310,0.07263865,217.42,217.0,0.27227847]
[1693501489510,0.07263865,217.42,217.01,0.19715879]
[1693501489912,0.07263865,217.42,217.02,0.19715879]
[1693501490215,0.07263865,217.43,217.03,0.19715879]
[1693501490415,0.07263865,217.43,217.04,0.19715879]
[1693501490612,2.42128865,217.56,217.04,0.19715879]
[1693501490613,0.07263865,217.46,217.04,0.07511968]
[1693501490813,0.07263865,217.47,217.05,0.19715879]
[1693501491012,0.07263865,217.48,217.05,0.19715879]
[1693501491914,0.07263865,217.47,217.05,0.27227847]
[1693501492217,0.07263865,217.48,217.06,0.19715879]
[1693501493910,0.07263865,217.48,217.06,0.27227847]
[1693501494116,0.07263865,217.48,217.07,0.19715879]
[1693501494916,0.07263865,217.48,217.06,0.19715879]
[1693501495117,0.07263865,217.48,217.07,0.19715879]
[1693501495612,0.07263865,217.48,216.99,0.15023937]
[1693501495613,0.07263865,217.48,217.08,0.19715879]
[1693501495812,0.07263865,217.48,217.07,0.19715879]
[1693501496017,0.07263865,217.48,217.08,0.19715879]
[1693501496219,0.07263865,217.48,217.07,0.19715879]
[1693501496418,0.07263865,217.48,217.08,0.19715879]
[1693501496720,0.07263865,217.46,217.09,0.19715879]
[1693501497015,0.07263865,217.46,217.1,0.19715879]
[1693501497220,0.07263865,217.47,217.08,0.19715879]
[1693501497411,0.07263865,217.47,217.11,0.19715879]
[1693501497613,0.07263865,217.46,217.12,0.19715879]
[1693501497817,0.07263865,217.46,217.09,0.19715879]
[1693501498018,0.07263865,217.45,217.1,0.19715879]
[1693501498222,0.07263865,217.45,217.06,0.07511968]
[1693501498223,0.07263865,217.45,217.07,0.19715879]
[1693501498415,0.07263865,217.45,217.08,0.19715879]
[1693501498719,0.07263865,217.45,217.09,0.19715879]
[1693501498918,0.07263865,217.45,217.08,0.19715879]
[1693501499119,0.07263865,217.45,217.09,0.19715879]
[1693501499320,0.07263865,217.45,217.08,0.19715879]
[1693501499524,0.07263865,217.45,217.09,0.19715879]
[1693501499717,0.07263865,217.45,217.08,0.19715879]
[1693501499917,0.07263865,217.45,217.09,0.19715879]
[1693501500117,0.07263865,217.45,217.08,0.19715879]
[1693501500318,0.07263865,217.45,217.09,0.19715879]
[1693501500513,0.07263865,217.45,217.08,0.27227847]
[1693501500715,0.07263865,217.46,217.09,0.19715879]
[1693501502016,0.07263865,217.47,217.09,0.19715879]
[1693501502322,0.07263865,217.46,217.09,0.19715879]
[1693501503520,0.07263865,217.45,217.09,0.19715879]
[1693501503917,0.07263865,217.45,217.07,0.07511968]
[1693501503918,0.07263865,217.45,217.08,0.19715879]
[1693501504118,0.07263865,217.45,217.09,0.19715879]
[1693501504322,0.07263865,217.45,217.08,0.19715879]
[1693501504637,0.07263865,217.44,217.09,0.19715879]
[1693501504821,0.07263865,217.44,217.07,0.19715879]
[1693501505022,0.07263865,217.44,217.08,0.19715879]
[1693501505223,0.07263865,217.44,217.07,0.19715879]
[1693501505423,0.07263865,217.44,217.08,0.19715879]
[1693501505622,0.07263865,217.44,217.07,0.19715879]
[1693501505822,0.07263865,217.43,217.09,0.19715879]
[1693501506117,0.07263865,217.44,217.1,0.19715879]
[1693501506322,0.07263865,217.4,217.11,0.19715879]
[1693501506523,0.07263865,217.4,217.02,0.07511968]
[1693501506822,0.07263865,217.39,217.03,0.19718097]
[1693501507024,0.07263865,217.39,217.02,0.19718097]
[1693501507223,0.07263865,217.4,217.03,0.19718097]
[1693501507424,0.07263865,217.4,217.01,0.19718097]
[1693501507825,0.07263865,217.4,217.0,0.19718097]
[1693501508017,0.07263865,217.4,217.01,0.19718097]
[1693501508321,0.07263865,217.39,217.02,0.19718097]
[1693501508525,0.07263865,217.39,216.99,0.19718097]
[1693501508723,0.07263865,217.4,217.0,0.19718097]
[1693501508923,0.07263865,217.39,216.98,0.19718097]
[1693501509124,0.07263865,217.38,216.99,0.19718097]
[1693501509320,0.07263865,217.38,216.96,0.19718097]
[1693501509524,0.07263865,217.38,216.97,0.19718097]
[1693501509922,0.07263865,217.38,216.96,0.19718097]
[1693501510124,0.07263865,217.38,216.98,0.19718097]
[1693501510322,0.07263865,217.38,216.99,0.19718097]
[1693501510624,0.07263865,217.38,217.0,0.19718097]
[1693501510824,0.07263865,217.4,217.0,0.19718097]
[1693501511024,0.07263865,217.39,217.01,0.19718097]
[1693501511225,0.07263865,217.39,216.95,0.19718097]
[1693501511423,0.07263865,217.4,216.96,0.19718097]
[1693501511626,0.07263865,217.4,216.95,0.19718097]
[1693501512128,0.07263865,217.39,216.95,0.19718097]
[1693501512622,0.07263865,217.39,216.96,0.19718097]
[1693501512826,0.07263865,217.37,216.94,0.27230065]
[1693501513026,0.07263865,217.39,216.95,0.19718097]
[1693501513626,0.07263865,217.4,216.96,0.07511968]
[1693501513825,0.07263865,217.4,216.97,0.19718097]
[1693501514427,0.96851546,217.48,216.97,0.19718097]
[1693501514428,0.07263865,217.41,216.97,0.27230065]
[1693501514728,0.07263865,217.41,216.98,0.19718097]
[1693501514927,0.07263865,217.41,216.97,0.19718097]
[1693501515122,0.07263865,217.41,216.99,0.19718097]
[1693501515328,0.07263865,217.41,217.0,0.19718097]
[1693501515523,0.07263865,217.41,216.97,0.19718097]
[1693501515922,0.07263865,217.42,216.97,0.27230065]
[1693501516127,0.07263865,217.42,216.98,0.19718097]
[1693501516723,0.07263865,217.42,217.02,0.07511968]
[1693501516928,0.07263865,217.46,217.03,0.19718097]
[1693501517130,0.07263865,217.47,217.03,0.27230065]
[1693501517327,0.07263865,217.47,217.04,0.19718097]
[1693501518029,0.07263865,217.47,217.03,0.19718097]
[1693501518223,0.07263865,217.47,217.04,0.19718097]
[1693501518626,0.07263865,217.48,217.04,0.19718097]
[1693501518828,0.07263865,217.48,217.04,0.27230065]
[1693501519028,0.07263865,217.48,217.05,0.19718097]
[1693501520028,0.07263865,217.49,217.05,0.27230065]
[1693501520225,0.07263865,217.49,217.06,0.19718097]
[1693501522230,0.07263865,217.49,217.05,0.27230065]
[1693501522425,0.07263865,217.49,217.06,0.19718097]
[1693501522929,0.07263865,217.49,217.07,0.19718097]
[1693501523130,0.07263865,217.49,217.06,0.19718097]
[1693501523330,0.07263865,217.49,217.05,0.19718097]
[1693501523530,0.07263865,217.49,217.06,0.19718097]
[1693501523726,0.07263865,217.49,217.07,0.19718097]
[1693501524031,0.07263865,217.48,217.08,0.19718097]
[1693501524231,0.07263865,217.48,217.05,0.19718097]
[1693501524431,0.07263865,217.48,217.06,0.19718097]
[1693501524625,0.07263865,217.48,217.05,0.19718097]
[1693501524830,0.07263865,217.49,217.04,0.27230065]
[1693501525030,0.07263865,217.49,217.05,0.27230065]
[1693501525227,0.07263865,217.49,217.06,0.19718097]
[1693501525731,0.07263865,217.5,217.06,0.19718097]
[1693501527130,0.07263865,217.54,217.09,0.07511968]
[1693501527336,0.07263865,217.54,217.1,0.27230065]
[1693501527534,0.07263865,217.54,217.11,0.19718097]
[1693501527933,0.07263865,217.54,217.12,0.19718097]
[1693501528134,0.07263865,217.54,217.1,0.19718097]
[1693501528335,0.07263865,217.54,217.11,0.19718097]
[1693501528835,0.07263865,217.55,217.11,0.19718097]
[1693501529131,0.07263865,217.55,217.1,0.19718097]
[1693501529336,0.07263865,217.55,217.11,0.19718097]
[1693501529734,0.07263865,217.55,217.12,0.19718097]
[1693501529936,0.07263865,217.56,217.1,0.19718097]
[1693501530137,0.07263865,217.57,217.13,0.19718097]
[1693501530338,0.07263865,217.57,217.11,0.19718097]
[1693501530636,0.07263865,217.58,217.12,0.19718097]
[1693501530936,0.07263865,217.58,217.13,0.19718097]
[1693501531137,0.8452647,217.57,217.1,0.19718097]
[1693501531437,0.91790335,217.57,217.1,0.19718097]
[1693501531735,0.07263865,217.58,217.11,0.19718097]
[1693501532038,0.8452715,217.57,217.12,0.19718097]
[1693501532237,0.8452715,217.57,217.09,0.19718097]
[1693501532536,0.8452715,217.57,217.1,0.19718097]
[1693501532837,0.8452715,217.57,217.11,0.19718097]
[1693501533036,0.07263865,217.59,217.08,0.27230065]
[1693501533339,0.84524215,217.58,217.09,0.19718097]
[1693501533736,0.07263865,217.61,217.09,0.27230065]
[1693501533936,0.84517863,217.6,217.1,0.19718097]
[1693501534234,0.84517863,217.6,217.1,0.27230065]
[1693501534435,0.84517863,217.6,217.11,0.19718097]
[1693501535136,0.07263865,217.67,217.13,0.07511968]
[1693501535336,0.84496092,217.66,217.14,0.19718097]
[1693501536031,0.07263865,217.69,217.11,0.07511968]
[1693501536032,0.84496092,217.65,217.15,0.19718097]
[1693501536237,0.84496092,217.68,217.12,0.27230065]
[1693501536432,0.07263865,217.7,217.12,0.27230065]
[1693501536433,0.84496092,217.69,217.13,0.19718097]
[1693501536637,0.84496092,217.68,217.13,0.19718097]
[1693501536833,0.84496092,217.69,217.13,0.19718097]
[1693501537736,0.91759957,217.69,217.14,0.19718097]
[1693501537938,6.77960823,217.91,217.12,0.19718097]
[1693501537939,0.84496092,217.68,217.12,0.19718097]
[1693501538138,0.84496092,217.7,217.13,0.19718097]
[1693501538338,0.84496092,217.69,217.1,0.19718097]
[1693501538639,0.84496092,217.68,217.1,0.19718097]
[1693501538840,0.84496092,217.7,217.1,0.19718097]
[1693501539141,0.84496092,217.69,217.1,0.19718097]
[1693501539441,0.84496092,217.68,217.1,0.19718097]
[1693501539840,0.84496092,217.67,217.1,0.19718097]
[1693501540042,0.84496092,217.72,217.09,0.19718097]
[1693501540341,0.84496092,217.66,217.08,0.19718097]
[1693501540540,0.84496092,217.65,217.08,0.19718097]
[1693501540745,0.84496092,217.72,217.08,0.19718097]
[1693501540939,0.84496092,217.71,217.08,0.19718097]
[1693501541144,0.84496092,217.72,217.08,0.19718097]
[1693501541942,0.84496092,217.73,217.08,0.19718097]
[1693501542140,0.84496092,217.73,217.07,0.19718097]
[1693501542344,0.84496092,217.73,217.07,0.27230065]
[1693501542646,0.84496092,217.73,217.08,0.19718097]
[1693501543540,0.91759957,217.73,217.07,0.19718097]
[1693501543745,0.07263865,217.69,217.07,0.19718097]
[1693501543939,0.84496092,217.68,217.04,0.19718097]
[1693501544140,0.91759957,217.68,217.04,0.19718097]
[1693501544343,0.84496092,217.67,217.04,0.19718097]
[1693501544745,0.91759957,217.67,217.04,0.19718097]
[1693501544945,0.84496092,217.66,217.03,0.19718097]
[1693501545146,0.84496092,217.66,217.04,0.19718097]
[1693501545447,0.84496092,217.66,217.05,0.19718097]
[1693501545648,0.84496092,217.66,217.03,0.19718097]
[1693501545847,0.91759957,217.66,217.04,0.27230065]
[1693501546041,0.84496092,217.65,217.05,0.19718097]
[1693501546849,0.84496092,217.65,217.05,0.27230065]
[1693501547048,0.84496092,217.66,217.06,0.19718097]
[1693501547249,0.84496092,217.65,217.06,0.19718097]
[1693501547449,0.84496092,217.66,217.06,0.19718097]
[1693501547851,0.91759957,217.66,217.06,0.19718097]
[1693501548152,0.07263865,217.63,217.06,0.27230065]
[1693501548349,0.07263865,217.64,217.06,0.27230065]
[1693501548550,0.84496092,217.63,217.07,0.27230065]
[1693501548851,0.84496092,217.63,217.08,0.19718097]
[1693501549149,0.91759957,217.63,217.09,0.19718097]
[1693501549350,0.84496092,217.62,217.07,0.19718097]
[1693501549556,0.84496092,217.62,217.08,0.19718097]
[1693501549746,0.84496092,217.62,217.09,0.19718097]
[1693501549946,0.84496092,217.62,217.07,0.19718097]
[1693501550151,0.84496092,217.62,217.08,0.19718097]
[1693501550354,0.84496092,217.62,217.07,0.19718097]
[1693501550753,0.84496092,217.62,217.07,0.27230065]
[1693501551057,0.07263865,217.61,217.08,0.19718097]
[1693501551256,0.91759957,217.6,217.08,0.27230065]
[1693501551449,0.84496092,217.59,217.09,0.19718097]
[1693501551956,0.84496092,217.59,217.09,0.27230065]
[1693501552156,0.91759957,217.59,217.1,0.19718097]
[1693501552355,0.84496092,217.58,217.1,0.19718097]
[1693501552556,0.84496092,217.59,217.1,0.19718097]
[1693501552757,0.84519236,217.58,217.1,0.19718097]
[1693501554058,0.91783101,217.58,217.1,0.19718097]
[1693501554259,0.07263865,217.58,217.1,0.19718097]
[1693501555960,0.07263865,217.57,217.1,0.27230065]
[1693501556157,0.07263865,217.57,217.11,0.19718097]
[1693501557155,0.14527731,217.59,217.11,0.19718097]
[1693501557156,0.07263865,217.55,217.11,0.19718097]
[1693501557356,0.07263865,217.55,217.09,0.19718097]
[1693501557559,0.07263865,217.55,217.1,0.19718097]
[1693501557755,0.07263865,217.55,216.85,1.00159585]
[1693501557756,0.07263865,217.54,217.09,0.27230065]
[1693501557962,0.07263865,217.54,217.1,0.19718097]
[1693501558557,0.07263865,217.54,217.1,0.27230065]
[1693501558762,0.07263865,217.55,217.11,0.19718097]
[1693501559655,0.07263865,217.55,217.11,0.27230065]
[1693501559856,0.07263865,217.55,216.87,1.00159585]
[1693501559857,0.07263865,217.54,217.12,0.27230065]
[1693501560058,0.07263865,217.54,217.13,0.19718097]
[1693501561566,0.07263865,217.55,217.14,0.07511968]
[1693501561761,0.07263865,217.55,217.15,0.19718097]
[1693501562064,0.07263865,217.54,217.15,0.27230065]
[1693501562262,0.07263865,217.54,217.16,0.19718097]
[1693501562861,0.07263865,217.53,217.15,0.19718097]
[1693501563064,0.07263865,217.53,217.16,0.19718097]
[1693501563260,0.07263865,217.53,217.15,0.27230065]
[1693501563465,0.07263865,217.53,217.16,0.19718097]
[1693501563668,0.07263865,217.52,217.16,0.19718097]
[1693501563966,0.07263865,217.52,217.17,0.19718097]
[1693501564167,0.07263865,217.52,217.14,0.19718097]
[1693501564361,0.07263865,217.52,217.15,0.19718097]
[1693501564565,0.07263865,217.52,217.14,0.27230065]
[1693501564767,0.07263865,217.53,217.15,0.19718097]
[1693501564965,0.07263865,217.53,217.15,0.27230065]
[1693501565162,0.07263865,217.53,217.16,0.19718097]
[1693501565961,0.07263865,217.54,217.16,0.27230065]
[1693501566468,0.07263865,217.54,217.17,0.19718097]
[1693501567467,0.07263865,217.54,217.17,0.27230065]
[1693501567664,0.07263865,217.54,217.18,0.19718097]
[1693501569371,0.07263865,217.53,217.18,0.19718097]
[1693501570073,0.07263865,217.54,217.18,0.19718097]
[1693501570473,0.07263865,217.53,217.18,0.19718097]
[1693501571270,0.07263865,217.53,217.18,0.27230065]
[1693501571580,0.07263865,217.54,217.19,0.19718097]
[1693501572173,0.07263865,217.53,217.19,0.19718097]
[1693501572574,0.07263865,217.54,217.19,0.19718097]
[1693501572971,0.07263865,217.54,217.19,0.27230065]
[1693501573277,0.07263865,217.53,217.2,0.19718097]
[1693501574876,0.07263865,217.51,217.2,0.19718097]
[1693501575079,0.07263865,217.5,217.2,0.27230065]
[1693501575377,0.07263865,217.49,217.21,0.19718097]
[1693501575580,0.07263865,217.49,217.19,0.19718097]
[1693501575778,0.07263865,217.49,217.2,0.19718097]
[1693501575975,0.07263865,217.49,217.19,0.19718097]
[1693501576176,0.07263865,217.49,217.2,0.19718097]
[1693501576377,0.07263865,217.49,217.21,0.19718097]
[1693501576576,0.07263865,217.49,217.18,0.19718097]
[1693501576781,0.07263865,217.48,217.19,0.27230065]
[1693501576981,0.07263865,217.48,217.2,0.19718097]
[1693501577783,0.07263865,217.49,217.2,0.19718097]
[1693501577979,0.07263865,217.49,217.2,0.27230065]
[1693501578277,0.07263865,217.5,217.21,0.19718097]
[1693501578482,0.07263865,217.5,217.21,0.27230065]
[1693501578678,0.07263865,217.51,217.22,0.27230065]
[1693501578883,0.07263865,217.51,217.23,0.19718097]
[1693501580783,0.07263865,217.52,217.23,0.19718097]
[1693501581180,0.07263865,217.52,217.23,0.27230065]
[1693501581381,0.07263865,217.52,217.24,0.19718097]
[1693501581781,0.07263865,217.52,217.25,0.19718097]
[1693501581982,0.07263865,217.52,217.24,0.19718097]
[1693501582181,0.07263865,217.52,217.23,0.07511968]
[1693501582182,0.07263865,217.52,217.25,0.19718097]
[1693501582382,0.07263865,217.52,217.26,0.19718097]
[1693501582582,0.07263865,217.52,217.24,0.19718097]
[1693501582781,0.07263865,217.52,217.23,0.07511968]
[1693501582782,0.07263865,217.52,217.25,0.19718097]
[1693501582983,0.07263865,217.52,217.24,0.19718097]
[1693501583982,0.07263865,217.53,217.24,0.19718097]
[1693501584179,0.07263865,217.56,217.27,0.07511968]
[1693501584379,0.07263865,217.56,217.28,0.19718097]
[1693501585487,0.07263865,217.54,217.28,0.19718097]
[1693501585688,0.07263865,217.54,217.22,0.07511968]
[1693501585986,2.42128865,217.67,217.23,0.19659843]
[1693501585987,0.07263865,217.53,217.23,0.19659843]
[1693501586187,0.07263865,217.53,217.22,0.19659843]
[1693501586387,0.07263865,217.53,217.23,0.19659843]
[1693501586587,0.07263865,217.53,217.22,0.19659843]
[1693501587089,0.07263865,217.53,217.22,0.27171811]
[1693501587386,0.07263865,217.53,217.23,0.19659843]
[1693501587985,0.07263865,217.53,217.22,0.19659843]
[1693501588486,0.07263865,217.53,217.22,0.27171811]
[1693501588687,0.07263865,217.53,217.23,0.19659843]
[1693501589287,0.07263865,217.53,217.22,0.27171811]
[1693501589488,0.07263865,217.53,217.23,0.19659843]
[1693501591089,0.07263865,217.54,217.23,0.19659843]
[1693501591990,0.07263865,217.53,217.23,0.19659843]
[1693501592583,0.07263865,217.54,217.23,0.19659843]
[1693501592784,0.07263865,217.53,217.23,0.19659843]
[1693501593385,0.07263865,217.53,217.23,0.27171811]
[1693501593587,0.07263865,217.53,217.24,0.19659843]
[1693501594990,0.07263865,217.54,217.24,0.19659843]
[1693501595190,0.07263865,217.54,217.24,0.27171811]
[1693501595386,0.07263865,217.54,217.25,0.19659843]
[1693501595789,0.07263865,217.55,217.25,0.19659843]
[1693501595987,0.55689638,217.59,217.25,0.19659843]
[1693501596192,0.07263865,217.61,217.29,0.07511968]
[1693501596387,0.07263865,217.61,217.3,0.19659843]
[1693501596592,0.07263865,217.6,217.3,0.19659843]
[1693501596788,0.07263865,217.6,217.28,0.19659843]
[1693501596990,0.14527731,217.63,217.28,0.19659843]
[1693501596991,0.07263865,217.61,217.28,0.19659843]
[1693501597697,0.07263865,217.61,217.27,0.19659843]
[1693501597993,0.07263865,217.61,217.28,0.19659843]
[1693501598196,0.07263865,217.61,217.27,0.19659843]
[1693501598592,0.07263865,217.62,217.27,0.27171811]
[1693501598791,0.07263865,217.62,217.28,0.19659843]
[1693501599397,0.07263865,217.63,217.28,0.19659843]
[1693501599693,0.07263865,217.63,217.29,0.19659843]
[1693501599889,0.07263865,217.63,217.27,0.19659843]
[1693501600089,0.07263865,217.64,217.28,0.19659843]
[1693501600293,0.07263865,217.64,217.27,0.19659843]
[1693501600595,0.07263865,217.64,217.28,0.19659843]
[1693501600794,0.07263865,217.64,217.27,0.19659843]
[1693501601093,0.07263865,217.64,217.25,0.07511968]
[1693501601094,0.07263865,217.64,217.28,0.19659843]
[1693501601494,0.07263865,217.65,217.29,0.19659843]
[1693501601895,0.07263865,217.65,217.26,0.07511968]
[1693501601896,0.07263865,217.65,217.3,0.19659843]
[1693501602094,0.07263865,217.65,217.31,0.19659843]
[1693501602291,0.07263865,217.65,217.27,0.19659843]
[1693501602494,0.07263865,217.65,217.28,0.19659843]
[1693501602791,0.07263865,217.65,217.29,0.19659843]
[1693501602996,0.07263865,217.65,217.26,0.19659843]
[1693501603198,0.07263865,217.66,217.27,0.19659843]
[1693501603391,0.07263865,217.66,217.28,0.19659843]
[1693501603593,0.07263865,217.66,217.25,0.19659843]
[1693501603794,0.07263865,217.66,217.26,0.19659843]
[1693501604091,0.07263865,217.66,217.27,0.19659843]
[1693501604296,0.07263865,217.66,217.25,0.19659843]
[1693501605298,0.07263865,217.67,217.25,0.19659843]
[1693501605891,0.07263865,217.66,217.25,0.19659843]
[1693501606097,0.07263865,217.66,217.24,0.19659843]
[1693501606401,0.07263865,217.67,217.25,0.19659843]
[1693501606601,0.07263865,217.66,217.24,0.19659843]
[1693501606899,0.07263865,217.66,217.25,0.19659843]
[1693501607099,0.07263865,217.66,217.24,0.19659843]
[1693501607300,0.07263865,217.67,217.25,0.19659843]
[1693501607495,0.07263865,217.67,217.24,0.19659843]
[1693501607699,0.07263865,217.67,217.25,0.19659843]
[1693501607999,0.07263865,217.67,217.24,0.19659843]
[1693501608197,0.07263865,217.67,217.25,0.19659843]
[1693501608400,0.07263865,217.67,217.24,0.19659843]
[1693501609195,0.07263865,217.68,217.24,0.19659843]
[1693501609795,0.07263865,217.67,217.24,0.19659843]
[1693501611295,0.07263865,217.67,217.24,0.27171811]
[1693501611502,0.96851546,217.75,217.24,0.27171811]
[1693501611503,0.07263865,217.68,217.25,0.19659843]
[1693501612298,0.96851546,217.75,217.25,0.19659843]
[1693501612299,0.07263865,217.67,217.25,0.19659843]
[1693501612801,0.07263865,217.68,217.25,0.27171811]
[1693501613104,0.07263865,217.68,217.26,0.19659843]
[1693501613702,0.07263865,217.67,217.26,0.19659843]
[1693501614097,0.07263865,217.66,217.27,0.19659843]
[1693501614303,0.07263865,217.65,217.24,0.19659843]
[1693501614504,0.07263865,217.65,217.25,0.19659843]
[1693501614702,0.07263865,217.65,217.24,0.19659843]
[1693501615003,0.07263865,217.66,217.25,0.19659843]
[1693501615303,0.07263865,217.65,217.26,0.19659843]
[1693501615504,0.07263865,217.65,217.24,0.19659843]
[1693501616601,0.07263865,217.64,217.24,0.19659843]
[1693501619501,0.48425773,217.68,217.24,0.19659843]
[1693501619502,0.07263865,217.63,217.24,0.19659843]
[1693501620202,0.07263865,217.64,217.24,0.19659843]
[1693501622106,0.07263865,217.63,217.24,0.19659843]
[1693501622307,0.07263865,217.63,217.23,0.27171811]
[1693501622506,0.07263865,217.62,217.24,0.19659843]
[1693501622708,0.07263865,217.62,217.22,0.07511968]
[1693501622709,0.07263865,217.62,217.23,0.19659843]
[1693501622905,0.07263865,217.62,217.23,0.27171811]
[1693501623107,0.07263865,217.62,217.24,0.19659843]
[1693501623701,0.07263865,217.57,217.24,0.19659843]
[1693501623902,0.07263865,217.57,217.19,0.19659843]
[1693501624106,0.07263865,217.57,217.2,0.19659843]
[1693501624305,0.07263865,217.57,217.18,0.19659843]
[1693501624507,0.07263865,217.56,217.18,0.19659843]
[1693501625002,0.07263865,217.57,217.18,0.19659843]
[1693501625202,0.07263865,217.56,217.18,0.19659843]
[1693501625705,0.07263865,217.57,217.19,0.07511968]
[1693501625905,0.07263865,217.58,217.2,0.27171811]
[1693501626106,0.07263865,217.59,217.21,0.19659843]
[1693501626303,0.07263865,217.58,217.21,0.27171811]
[1693501626509,0.07263865,217.58,217.22,0.19659843]
[1693501627107,0.07263865,217.58,217.21,0.19659843]
[1693501627709,0.07263865,217.62,217.24,0.07511968]
[1693501627906,0.07263865,217.62,217.25,0.27171811]
[1693501628106,0.07263865,217.63,217.26,0.19659843]
[1693501628412,0.07263865,217.62,217.27,0.07511968]
[1693501628612,0.07263865,217.62,217.28,0.19659843]
[1693501629009,0.07263865,217.63,217.28,0.19659843]
[1693501629210,0.07263865,217.61,217.28,0.27171811]
[1693501629406,0.07263865,217.62,217.29,0.19659843]
[1693501630212,0.07263865,217.61,217.29,0.19659843]
[1693501630412,0.07263865,217.62,217.29,0.19659843]
[1693501631013,0.07263865,217.62,217.29,0.27171811]
[1693501631311,0.07263865,217.63,217.3,0.27171811]
[1693501631512,0.07263865,217.63,217.31,0.19659843]
[1693501633409,0.07263865,217.63,217.3,0.19659843]
[1693501633614,0.07263865,217.63,217.31,0.19659843]
[1693501633812,0.07263865,217.63,217.3,0.19659843]
[1693501634614,0.07263865,217.62,217.3,0.19659843]
[1693501634912,2.42128865,217.75,217.31,0.19659843]
[1693501634913,0.07263865,217.6,217.31,0.19659843]
[1693501635110,0.07263865,217.6,217.27,0.19659843]
[1693501636117,0.07263865,217.61,217.27,0.19659843]
[1693501636317,0.07263865,217.61,217.27,0.27171811]
[1693501636516,0.07263865,217.61,217.28,0.19659843]
[1693501640114,0.07263865,217.62,217.28,0.27171811]
[1693501640313,0.07263865,217.62,217.29,0.19659843]
[1693501640916,0.07263865,217.61,217.29,0.19659843]
[1693501641118,0.07263865,217.61,217.28,0.19659843]
[1693501641515,0.07263865,217.61,217.27,0.19659843]
[1693501641715,0.07263865,217.61,217.28,0.19659843]
[1693501641920,0.07263865,217.56,217.28,0.19659843]
[1693501642118,0.07263865,217.56,217.22,0.19659843]
[1693501642717,0.07263865,217.56,217.21,0.19659843]
[1693501642916,0.07263865,217.56,217.22,0.19659843]
[1693501643119,0.07263865,217.56,217.21,0.19659843]
[1693501644413,2.42128865,217.69,217.21,0.19659843]
[1693501644414,0.07263865,217.57,217.21,0.19659843]
[1693501645121,0.07263865,217.58,217.21,0.19659843]
[1693501645419,0.14527731,217.6,217.21,0.19659843]
[1693501645420,0.07263865,217.62,217.24,0.07511968]
[1693501645620,0.07263865,217.63,217.25,0.27171811]
[1693501645820,0.07263865,217.64,217.26,0.27171811]
[1693501646015,0.07263865,217.64,217.27,0.19659843]
[1693501648320,0.07263865,217.63,217.27,0.19659843]
[1693501648717,0.07263865,217.64,217.27,0.19659843]
[1693501650321,0.07263865,217.64,217.27,0.27171811]
[1693501650623,0.07263865,217.64,217.28,0.19659843]
[1693501651521,0.07263865,217.63,217.27,0.19659843]
[1693501651917,0.07263865,217.63,217.25,0.07511968]
[1693501651918,0.07263865,217.63,217.26,0.19659843]
[1693501652123,0.07263865,217.63,217.27,0.19659843]
[1693501652322,0.07263865,217.63,217.26,0.19659843]
[1693501652523,0.07263865,217.63,217.27,0.19659843]
[1693501652724,0.07263865,217.63,217.25,0.07511968]
[1693501652725,3.09836334,217.89,217.26,0.19659843]
[1693501653024,0.07282345,217.63,217.27,0.19659843]
[1693501653221,0.07282345,217.63,217.26,0.19659843]
[1693501653421,0.07282345,217.63,217.27,0.19659843]
[1693501653621,0.07282345,217.63,217.26,0.27172771]
[1693501653823,0.07282345,217.63,217.27,0.19659843]
[1693501654425,0.07282345,217.64,217.27,0.19659843]
[1693501655421,0.07282345,217.63,217.27,0.19659843]
[1693501655727,0.07282345,217.64,217.27,0.19659843]
[1693501655926,0.07282345,217.63,217.27,0.19659843]
[1693501656127,0.07282345,217.64,217.27,0.27172771]
[1693501656328,0.07282345,217.64,217.28,0.19659843]
[1693501656530,0.07282345,217.65,217.28,0.27172771]
[1693501656730,0.07282345,217.65,217.29,0.19659843]
[1693501658428,0.07282345,217.66,217.29,0.19659843]
[1693501659123,0.07282345,217.66,217.29,0.27172771]
[1693501659328,0.07282345,217.65,217.3,0.19659843]
[1693501659523,0.07282345,217.66,217.3,0.27172771]
[1693501659730,0.07282345,217.66,217.31,0.19659843]